[Event "Titled Tuesday Blitz March 22 Late 2022"]
[White "Costachi, Mihnea"]
[Black "Artemiev, Vladislav"]
[WhiteFideId "1217518"]
[BlackFideId "24101605"]
[WhiteElo "2464"]
[BlackElo "2811"]
[Result "1-0"]
[Round "03"]
[TimeControl "180+1"]
[Date "2022.03.22"]
[WhiteClock "0:00:06"]
[BlackClock "0:00:02"]

1. d4 {[%clk 0:03:00]}  d5 {[%clk 0:02:58]} 2. c4 {[%clk 0:03:00]}  e6 {[%clk 0:02:58]} 3. Nc3 {[%clk 0:02:59]}  h6 {[%clk 0:02:58]} 4. Nf3 {[%clk 0:02:57]}  Nf6 {[%clk 0:02:58]} 5. cxd5 {[%clk 0:02:52]}  exd5 {[%clk 0:02:58]} 6. Qc2 {[%clk 0:02:52]}  Bd6 {[%clk 0:02:54]} 7. Nb5 {[%clk 0:02:43]}  Bb4+ {[%clk 0:02:50]} 8. Bd2 {[%clk 0:02:44]}  Bxd2+ {[%clk 0:02:49]} 9. Nxd2 {[%clk 0:02:43]}  c6 {[%clk 0:02:48]} 10. Nc3 {[%clk 0:02:43]}  O-O {[%clk 0:02:43]} 11. e3 {[%clk 0:02:44]}  Re8 {[%clk 0:02:41]} 12. Bd3 {[%clk 0:02:43]}  c5 {[%clk 0:02:37]} 13. O-O {[%clk 0:02:40]}  cxd4 {[%clk 0:02:33]} 14. exd4 {[%clk 0:02:41]}  Nc6 {[%clk 0:02:33]} 15. Nb3 {[%clk 0:02:38]}  Qb6 {[%clk 0:02:22]} 16. Qd2 {[%clk 0:02:26]}  a5 {[%clk 0:02:19]} 17. Na4 {[%clk 0:02:23]}  Qd8 {[%clk 0:02:08]} 18. Rfe1 {[%clk 0:02:17]}  Be6 {[%clk 0:01:59]} 19. Rac1 {[%clk 0:02:08]}  Ne4 {[%clk 0:01:48]} 20. Bxe4 {[%clk 0:02:03]}  dxe4 {[%clk 0:01:48]} 21. Rxe4 {[%clk 0:02:03]}  Nb4 {[%clk 0:01:38]} 22. Nac5 {[%clk 0:01:55]}  Bd5 {[%clk 0:01:19]} 23. Rxe8+ {[%clk 0:01:55]}  Qxe8 {[%clk 0:01:19]} 24. a3 {[%clk 0:01:55]}  Nc6 {[%clk 0:01:17]} 25. Re1 {[%clk 0:01:42]}  Qc8 {[%clk 0:01:10]} 26. Qe3 {[%clk 0:01:31]}  b6 {[%clk 0:00:28]} 27. Ne4 {[%clk 0:01:31]}  Qd7 {[%clk 0:00:17]} 28. Nbd2 {[%clk 0:01:30]}  Rd8 {[%clk 0:00:15]} 29. Nf3 {[%clk 0:01:27]}  Kf8 {[%clk 0:00:09]} 30. Ne5 {[%clk 0:01:25]}  Qe6 {[%clk 0:00:08]} 31. Nxc6 {[%clk 0:01:14]}  Qxc6 {[%clk 0:00:08]} 32. f3 {[%clk 0:00:58]}  Re8 {[%clk 0:00:05]} 33. Qf4 {[%clk 0:00:42]}  g5 {[%clk 0:00:05]} 34. Qf5 {[%clk 0:00:38]}  Qe6 {[%clk 0:00:03]} 35. Qh7 {[%clk 0:00:29]}  Ke7 {[%clk 0:00:02]} 36. Kf2 {[%clk 0:00:27]}  Kd8 {[%clk 0:00:02]} 37. Re2 {[%clk 0:00:20]}  Bc4 {[%clk 0:00:03]} 38. Rc2 {[%clk 0:00:19]}  Qd5 {[%clk 0:00:02]} 39. Qg7 {[%clk 0:00:17]}  a4 {[%clk 0:00:02]} 40. Qf6+ {[%clk 0:00:17]}  Kd7 {[%clk 0:00:03]} 41. Qxb6 {[%clk 0:00:13]}  Ke7 {[%clk 0:00:03]} 42. Nf6 {[%clk 0:00:09]}  Qf5 {[%clk 0:00:03]} 43. Rxc4 {[%clk 0:00:07]}  Rd8 {[%clk 0:00:03]} 44. Ne4 {[%clk 0:00:05]}  Rd5 {[%clk 0:00:01]} 45. Qc7+ {[%clk 0:00:05]}  Kf8 {[%clk 0:00:01]} 46. Qb8+ {[%clk 0:00:04]}  Kg7 {[%clk 0:00:01]} 47. Rc8 {[%clk 0:00:05]}  Qe6 {[%clk 0:00:01]} 48. Rg8+ {[%clk 0:00:06]}  Kh7 {[%clk 0:00:01]} 49. Rh8+ {[%clk 0:00:06]}  Kg6 {[%clk 0:00:02]} 50. Qg8+ {[%clk 0:00:07]}  Kh5 {[%clk 0:00:02]} 51. g4+ {[%clk 0:00:06]} 1-0


[Site "https://www.chess.com"]

[Event "Titled Tuesday Blitz March 22 Late 2022"]
[White "Deac, Bogdan-Daniel"]
[Black "Szpar, Milosz"]
[WhiteFideId "1226380"]
[BlackFideId "1184989"]
[WhiteElo "2646"]
[BlackElo "2447"]
[Result "1-0"]
[Round "03"]
[TimeControl "180+1"]
[Date "2022.03.22"]
[WhiteClock "0:00:04"]
[BlackClock "0:00:02"]

1. d4 {[%clk 0:03:00]}  Nf6 {[%clk 0:02:59]} 2. c4 {[%clk 0:03:00]}  c5 {[%clk 0:02:59]} 3. Nf3 {[%clk 0:03:00]}  g6 {[%clk 0:02:55]} 4. g3 {[%clk 0:02:59]}  Bg7 {[%clk 0:02:54]} 5. Bg2 {[%clk 0:02:59]}  O-O {[%clk 0:02:55]} 6. Nc3 {[%clk 0:02:59]}  d6 {[%clk 0:02:52]} 7. O-O {[%clk 0:02:56]}  Nc6 {[%clk 0:02:50]} 8. e3 {[%clk 0:02:55]}  Bg4 {[%clk 0:02:49]} 9. h3 {[%clk 0:02:51]}  Bxf3 {[%clk 0:02:49]} 10. Bxf3 {[%clk 0:02:52]}  Nd7 {[%clk 0:02:43]} 11. Ne2 {[%clk 0:02:31]}  Qb6 {[%clk 0:02:37]} 12. dxc5 {[%clk 0:02:25]}  Nxc5 {[%clk 0:02:34]} 13. Nf4 {[%clk 0:02:19]}  e6 {[%clk 0:02:26]} 14. Rb1 {[%clk 0:01:56]}  a5 {[%clk 0:02:17]} 15. b3 {[%clk 0:01:47]}  Rfd8 {[%clk 0:02:15]} 16. Bb2 {[%clk 0:01:41]}  Ne5 {[%clk 0:02:10]} 17. Bg2 {[%clk 0:01:36]}  Qc7 {[%clk 0:01:50]} 18. Ne2 {[%clk 0:01:32]}  Ncd3 {[%clk 0:01:35]} 19. Ba1 {[%clk 0:01:25]}  Nb4 {[%clk 0:01:33]} 20. Nc3 {[%clk 0:01:21]}  Qe7 {[%clk 0:01:23]} 21. a3 {[%clk 0:01:17]}  Nbc6 {[%clk 0:01:22]} 22. Qe2 {[%clk 0:01:15]}  Nd7 {[%clk 0:00:59]} 23. Rfd1 {[%clk 0:01:15]}  Nc5 {[%clk 0:00:51]} 24. Qc2 {[%clk 0:01:13]}  h5 {[%clk 0:00:48]} 25. h4 {[%clk 0:01:11]}  Bf6 {[%clk 0:00:39]} 26. Nb5 {[%clk 0:01:04]}  Ne5 {[%clk 0:00:32]} 27. b4 {[%clk 0:00:58]}  axb4 {[%clk 0:00:32]} 28. axb4 {[%clk 0:00:59]}  Na4 {[%clk 0:00:32]} 29. Bd4 {[%clk 0:00:51]}  Nc6 {[%clk 0:00:20]} 30. Bxf6 {[%clk 0:00:40]}  Qxf6 {[%clk 0:00:21]} 31. Rxd6 {[%clk 0:00:36]}  Rxd6 {[%clk 0:00:20]} 32. Nxd6 {[%clk 0:00:37]}  Nc3 {[%clk 0:00:21]} 33. Ne4 {[%clk 0:00:31]}  Nxe4 {[%clk 0:00:21]} 34. Bxe4 {[%clk 0:00:30]}  Ra1 {[%clk 0:00:18]} 35. Bxc6 {[%clk 0:00:22]}  bxc6 {[%clk 0:00:16]} 36. b5 {[%clk 0:00:23]}  Ra8 {[%clk 0:00:09]} 37. b6 {[%clk 0:00:21]}  c5 {[%clk 0:00:06]} 38. b7 {[%clk 0:00:19]}  Rb8 {[%clk 0:00:06]} 39. Qa4 {[%clk 0:00:19]}  Kg7 {[%clk 0:00:05]} 40. Qa7 {[%clk 0:00:17]}  Qf5 {[%clk 0:00:05]} 41. Qxb8 {[%clk 0:00:05]}  Qxb1+ {[%clk 0:00:05]} 42. Kh2 {[%clk 0:00:06]}  Qb2 {[%clk 0:00:06]} 43. Kg2 {[%clk 0:00:05]}  Qb6 {[%clk 0:00:01]} 44. Qe5+ {[%clk 0:00:05]}  f6 {[%clk 0:00:02]} 45. b8=Q {[%clk 0:00:06]}  Qc6+ {[%clk 0:00:02]} 46. e4 {[%clk 0:00:06]}  fxe5 {[%clk 0:00:02]} 47. Qxe5+ {[%clk 0:00:06]}  Kf7 {[%clk 0:00:03]} 48. Qf4+ {[%clk 0:00:05]}  Kg7 {[%clk 0:00:03]} 49. Qe5+ {[%clk 0:00:06]}  Kf7 {[%clk 0:00:04]} 50. Kf3 {[%clk 0:00:06]}  Qb6 {[%clk 0:00:03]} 51. Kf4 {[%clk 0:00:06]}  Qa7 {[%clk 0:00:02]} 52. Qd6 {[%clk 0:00:04]} 1-0


[Site "https://www.chess.com"]

[Event "Titled Tuesday Blitz March 22 Late 2022"]
[White "Dilanyan, Grigor"]
[Black "Zhigalko, Sergei"]
[WhiteFideId "13303570"]
[BlackFideId "13502956"]
[WhiteElo "2279"]
[BlackElo "2662"]
[Result "0-1"]
[Round "03"]
[TimeControl "180+1"]
[Date "2022.03.22"]
[WhiteClock "0:00:06"]
[BlackClock "0:00:27"]

1. e4 {[%clk 0:03:00]}  c5 {[%clk 0:02:58]} 2. Nc3 {[%clk 0:03:00]}  Nc6 {[%clk 0:02:57]} 3. Bb5 {[%clk 0:03:00]}  Nd4 {[%clk 0:02:57]} 4. Bc4 {[%clk 0:02:59]}  e6 {[%clk 0:02:57]} 5. Nge2 {[%clk 0:02:59]}  Qc7 {[%clk 0:02:50]} 6. O-O {[%clk 0:02:56]}  Nf6 {[%clk 0:02:49]} 7. d3 {[%clk 0:02:56]}  a6 {[%clk 0:02:49]} 8. Nxd4 {[%clk 0:02:51]}  cxd4 {[%clk 0:02:50]} 9. Ne2 {[%clk 0:02:52]}  Nxe4 {[%clk 0:02:50]} 10. Nxd4 {[%clk 0:02:47]}  Nf6 {[%clk 0:02:48]} 11. Bb3 {[%clk 0:02:38]}  b6 {[%clk 0:02:34]} 12. Bg5 {[%clk 0:02:17]}  Bb7 {[%clk 0:02:29]} 13. Re1 {[%clk 0:02:12]}  Bc5 {[%clk 0:01:39]} 14. Nf5 {[%clk 0:02:02]}  Bxf2+ {[%clk 0:01:39]} 15. Kxf2 {[%clk 0:01:15]}  Qc5+ {[%clk 0:01:39]} 16. Be3 {[%clk 0:01:16]}  Qxf5+ {[%clk 0:01:38]} 17. Kg1 {[%clk 0:01:16]}  b5 {[%clk 0:01:25]} 18. Qd2 {[%clk 0:01:15]}  O-O {[%clk 0:01:22]} 19. Bd4 {[%clk 0:01:14]}  Qg6 {[%clk 0:01:20]} 20. Rf1 {[%clk 0:01:11]}  Nd5 {[%clk 0:01:12]} 21. Rae1 {[%clk 0:01:09]}  Rac8 {[%clk 0:01:07]} 22. Rf3 {[%clk 0:01:06]}  f6 {[%clk 0:01:04]} 23. Rg3 {[%clk 0:01:02]}  Qf7 {[%clk 0:01:04]} 24. Rf1 {[%clk 0:01:01]}  Kh8 {[%clk 0:01:00]} 25. a4 {[%clk 0:00:59]}  Ne7 {[%clk 0:00:50]} 26. a5 {[%clk 0:00:57]}  Bd5 {[%clk 0:00:50]} 27. Bxd5 {[%clk 0:00:18]}  Nxd5 {[%clk 0:00:47]} 28. b3 {[%clk 0:00:16]}  d6 {[%clk 0:00:39]} 29. c4 {[%clk 0:00:16]}  Ne7 {[%clk 0:00:36]} 30. Qb4 {[%clk 0:00:14]}  Nf5 {[%clk 0:00:32]} 31. Rg4 {[%clk 0:00:13]}  Nxd4 {[%clk 0:00:28]} 32. Rxd4 {[%clk 0:00:14]}  Qa7 {[%clk 0:00:29]} 33. Qxd6 {[%clk 0:00:06]}  Rfd8 {[%clk 0:00:27]} 0-1


[Site "https://www.chess.com"]

[Event "Titled Tuesday Blitz March 22 Late 2022"]
[White "Do Valle Cardoso, Lucas"]
[Black "Rosenberg, Evan S"]
[WhiteFideId "2163144"]
[BlackFideId "2019299"]
[WhiteElo "2331"]
[BlackElo "2335"]
[Result "1-0"]
[Round "03"]
[TimeControl "180+1"]
[Date "2022.03.22"]
[WhiteClock "0:00:49"]
[BlackClock "0:00:11"]

1. e4 {[%clk 0:03:00]}  e5 {[%clk 0:02:59]} 2. Nf3 {[%clk 0:03:00]}  Nc6 {[%clk 0:02:59]} 3. Bb5 {[%clk 0:03:00]}  Nf6 {[%clk 0:02:59]} 4. O-O {[%clk 0:02:59]}  Nxe4 {[%clk 0:02:57]} 5. d4 {[%clk 0:02:59]}  Nd6 {[%clk 0:02:56]} 6. Bxc6 {[%clk 0:02:54]}  dxc6 {[%clk 0:02:56]} 7. dxe5 {[%clk 0:02:55]}  Nf5 {[%clk 0:02:56]} 8. Qxd8+ {[%clk 0:02:56]}  Kxd8 {[%clk 0:02:56]} 9. Nc3 {[%clk 0:02:53]}  Ne7 {[%clk 0:02:46]} 10. h3 {[%clk 0:02:33]}  Ng6 {[%clk 0:02:42]} 11. Rd1+ {[%clk 0:02:30]}  Ke8 {[%clk 0:02:42]} 12. Be3 {[%clk 0:02:22]}  Be7 {[%clk 0:02:31]} 13. Bg5 {[%clk 0:02:14]}  Be6 {[%clk 0:02:17]} 14. Bxe7 {[%clk 0:02:14]}  Kxe7 {[%clk 0:02:17]} 15. Rd2 {[%clk 0:02:14]}  Rad8 {[%clk 0:02:15]} 16. Rad1 {[%clk 0:02:15]}  Rxd2 {[%clk 0:02:15]} 17. Rxd2 {[%clk 0:02:16]}  h6 {[%clk 0:01:35]} 18. b3 {[%clk 0:02:06]}  b6 {[%clk 0:01:30]} 19. Kh2 {[%clk 0:01:53]}  a6 {[%clk 0:00:49]} 20. Kg3 {[%clk 0:01:52]}  c5 {[%clk 0:00:49]} 21. h4 {[%clk 0:01:51]}  Rd8 {[%clk 0:00:44]} 22. Re2 {[%clk 0:01:45]}  Bf5 {[%clk 0:00:28]} 23. h5 {[%clk 0:01:40]}  Nf8 {[%clk 0:00:28]} 24. Nh4 {[%clk 0:01:40]}  Bh7 {[%clk 0:00:27]} 25. f4 {[%clk 0:01:37]}  Ne6 {[%clk 0:00:27]} 26. Rf2 {[%clk 0:01:32]}  Nd4 {[%clk 0:00:20]} 27. f5 {[%clk 0:01:30]}  f6 {[%clk 0:00:18]} 28. exf6+ {[%clk 0:01:26]}  Kxf6 {[%clk 0:00:17]} 29. Ne4+ {[%clk 0:01:21]}  Ke5 {[%clk 0:00:17]} 30. Nd2 {[%clk 0:01:10]}  Nxf5+ {[%clk 0:00:14]} 31. Nxf5 {[%clk 0:01:08]}  Bxf5 {[%clk 0:00:15]} 32. Nf3+ {[%clk 0:00:58]}  Kd6 {[%clk 0:00:13]} 33. Ng5 {[%clk 0:00:55]}  Be6 {[%clk 0:00:11]} 34. Rd2+ {[%clk 0:00:49]} 1-0


[Site "https://www.chess.com"]

[Event "Titled Tuesday Blitz March 22 Late 2022"]
[White "Domingo Nunez, Alejandro"]
[Black "Melaugh, Shane"]
[WhiteFideId "22245561"]
[BlackFideId "2509580"]
[WhiteElo "2215"]
[BlackElo "2014"]
[Result "1-0"]
[Round "03"]
[TimeControl "180+1"]
[Date "2022.03.22"]
[WhiteClock "0:02:00"]
[BlackClock "0:00:15"]

1. Nf3 {[%clk 0:03:00]}  Nc6 {[%clk 0:02:58]} 2. e4 {[%clk 0:02:59]}  e5 {[%clk 0:02:44]} 3. Bc4 {[%clk 0:03:00]}  Nf6 {[%clk 0:02:41]} 4. d3 {[%clk 0:02:59]}  h6 {[%clk 0:02:34]} 5. O-O {[%clk 0:02:58]}  Bc5 {[%clk 0:02:34]} 6. c3 {[%clk 0:02:57]}  d6 {[%clk 0:02:25]} 7. Bb3 {[%clk 0:02:57]}  a5 {[%clk 0:02:24]} 8. Nbd2 {[%clk 0:02:57]}  O-O {[%clk 0:02:25]} 9. h3 {[%clk 0:02:57]}  Ba7 {[%clk 0:02:14]} 10. Re1 {[%clk 0:02:57]}  Ne7 {[%clk 0:02:12]} 11. Nf1 {[%clk 0:02:57]}  Ng6 {[%clk 0:02:13]} 12. Ng3 {[%clk 0:02:55]}  Be6 {[%clk 0:02:12]} 13. Bc2 {[%clk 0:02:56]}  c6 {[%clk 0:02:06]} 14. d4 {[%clk 0:02:56]}  Qc7 {[%clk 0:01:43]} 15. Nf5 {[%clk 0:02:55]}  Nf4 {[%clk 0:01:40]} 16. Bxf4 {[%clk 0:02:48]}  exf4 {[%clk 0:01:40]} 17. Qd2 {[%clk 0:02:49]}  Bxf5 {[%clk 0:01:39]} 18. exf5 {[%clk 0:02:49]}  d5 {[%clk 0:01:37]} 19. Ne5 {[%clk 0:02:49]}  Nh5 {[%clk 0:00:59]} 20. Qe2 {[%clk 0:02:48]}  Nf6 {[%clk 0:00:55]} 21. Qf3 {[%clk 0:02:47]}  Bb8 {[%clk 0:00:53]} 22. Qxf4 {[%clk 0:02:47]}  Nd7 {[%clk 0:00:53]} 23. Qh4 {[%clk 0:02:38]}  Nxe5 {[%clk 0:00:52]} 24. dxe5 {[%clk 0:02:39]}  f6 {[%clk 0:00:48]} 25. f4 {[%clk 0:02:33]}  Qb6+ {[%clk 0:00:46]} 26. Kh1 {[%clk 0:02:32]}  Qxb2 {[%clk 0:00:46]} 27. exf6 {[%clk 0:02:05]}  Qxc2 {[%clk 0:00:18]} 28. fxg7 {[%clk 0:02:03]}  Kxg7 {[%clk 0:00:19]} 29. Re7+ {[%clk 0:02:03]}  Rf7 {[%clk 0:00:19]} 30. f6+ {[%clk 0:02:02]}  Kg6 {[%clk 0:00:15]} 31. Qg4+ {[%clk 0:02:00]}  Kxf6 {[%clk 0:00:15]} 32. Re6# {[%clk 0:02:00]} 1-0


[Site "https://www.chess.com"]

[Event "Titled Tuesday Blitz March 22 Late 2022"]
[White "Estrada Nieto, Julian"]
[Black "Mekhitarian, Krikor Sevag"]
[WhiteFideId "5101018"]
[BlackFideId "2107660"]
[WhiteElo "2504"]
[BlackElo "2711"]
[Result "1-0"]
[Round "03"]
[TimeControl "180+1"]
[Date "2022.03.22"]
[WhiteClock "0:00:42"]
[BlackClock "0:00:13"]

1. e4 {[%clk 0:03:00]}  c5 {[%clk 0:02:59]} 2. Nf3 {[%clk 0:03:00]}  e6 {[%clk 0:02:58]} 3. c3 {[%clk 0:02:59]}  Nf6 {[%clk 0:02:52]} 4. e5 {[%clk 0:02:59]}  Nd5 {[%clk 0:02:52]} 5. Bc4 {[%clk 0:03:00]}  Nb6 {[%clk 0:02:50]} 6. Bb3 {[%clk 0:02:59]}  d5 {[%clk 0:02:50]} 7. d4 {[%clk 0:02:59]}  Nc6 {[%clk 0:02:47]} 8. O-O {[%clk 0:02:57]}  Bd7 {[%clk 0:02:42]} 9. Re1 {[%clk 0:02:57]}  Rc8 {[%clk 0:02:41]} 10. Nbd2 {[%clk 0:02:51]}  Be7 {[%clk 0:02:29]} 11. Nf1 {[%clk 0:02:48]}  O-O {[%clk 0:02:23]} 12. Ng3 {[%clk 0:02:42]}  cxd4 {[%clk 0:02:14]} 13. cxd4 {[%clk 0:02:41]}  f5 {[%clk 0:02:10]} 14. exf6 {[%clk 0:02:37]}  Bxf6 {[%clk 0:02:11]} 15. Nh5 {[%clk 0:02:29]}  Be7 {[%clk 0:01:58]} 16. a3 {[%clk 0:02:26]}  g6 {[%clk 0:01:47]} 17. Nf4 {[%clk 0:02:20]}  Rf6 {[%clk 0:01:47]} 18. Nd3 {[%clk 0:02:17]}  Rxf3 {[%clk 0:01:45]} 19. Qxf3 {[%clk 0:02:15]}  Nxd4 {[%clk 0:01:45]} 20. Qd1 {[%clk 0:02:14]}  Nxb3 {[%clk 0:01:42]} 21. Qxb3 {[%clk 0:02:13]}  Ba4 {[%clk 0:01:41]} 22. Qa2 {[%clk 0:02:10]}  Qd7 {[%clk 0:01:28]} 23. b3 {[%clk 0:02:03]}  Bb5 {[%clk 0:01:27]} 24. Ne5 {[%clk 0:02:02]}  Qc7 {[%clk 0:01:26]} 25. Ng4 {[%clk 0:01:43]}  Bd6 {[%clk 0:01:08]} 26. Qb2 {[%clk 0:01:19]}  h5 {[%clk 0:00:48]} 27. Rxe6 {[%clk 0:01:00]}  Be8 {[%clk 0:00:29]} 28. Nf6+ {[%clk 0:00:49]}  Kf7 {[%clk 0:00:26]} 29. Nxe8 {[%clk 0:00:48]}  Kxe6 {[%clk 0:00:13]} 30. Nxc7+ {[%clk 0:00:46]}  Rxc7 {[%clk 0:00:14]} 31. Qe2+ {[%clk 0:00:44]}  Kf7 {[%clk 0:00:14]} 32. Be3 {[%clk 0:00:43]}  Re7 {[%clk 0:00:13]} 33. Qf3+ {[%clk 0:00:42]} 1-0


[Site "https://www.chess.com"]

[Event "Titled Tuesday Blitz March 22 Late 2022"]
[White "Fernandez Siles, Luis"]
[Black "Ibarra Jerez, Jose Carlos"]
[WhiteFideId "2209420"]
[BlackFideId "2226332"]
[WhiteElo "2212"]
[BlackElo "2626"]
[Result "0-1"]
[Round "03"]
[TimeControl "180+1"]
[Date "2022.03.22"]
[WhiteClock "0:00:01"]
[BlackClock "0:00:03"]

1. d4 {[%clk 0:03:00]}  Nf6 {[%clk 0:02:58]} 2. c4 {[%clk 0:03:00]}  d6 {[%clk 0:02:57]} 3. Nf3 {[%clk 0:02:58]}  g6 {[%clk 0:02:57]} 4. g3 {[%clk 0:02:55]}  Bf5 {[%clk 0:02:55]} 5. Bg2 {[%clk 0:02:54]}  Bg7 {[%clk 0:02:56]} 6. O-O {[%clk 0:02:53]}  O-O {[%clk 0:02:56]} 7. b3 {[%clk 0:02:52]}  e5 {[%clk 0:02:51]} 8. dxe5 {[%clk 0:02:41]}  dxe5 {[%clk 0:02:50]} 9. Bb2 {[%clk 0:02:39]}  e4 {[%clk 0:02:42]} 10. Nd4 {[%clk 0:02:34]}  Ng4 {[%clk 0:02:20]} 11. h3 {[%clk 0:02:19]}  c5 {[%clk 0:01:15]} 12. hxg4 {[%clk 0:02:18]}  Bxg4 {[%clk 0:01:15]} 13. Bxe4 {[%clk 0:01:58]}  Qe7 {[%clk 0:01:13]} 14. Bf3 {[%clk 0:01:23]}  Bh3 {[%clk 0:01:07]} 15. Re1 {[%clk 0:01:09]}  Rd8 {[%clk 0:00:58]} 16. e3 {[%clk 0:00:58]}  cxd4 {[%clk 0:00:46]} 17. exd4 {[%clk 0:00:54]}  Qd7 {[%clk 0:00:47]} 18. Na3 {[%clk 0:00:47]}  Nc6 {[%clk 0:00:44]} 19. Nc2 {[%clk 0:00:44]}  Bf5 {[%clk 0:00:40]} 20. Be4 {[%clk 0:00:42]}  Bg4 {[%clk 0:00:40]} 21. Bf3 {[%clk 0:00:41]}  Bf5 {[%clk 0:00:22]} 22. Be4 {[%clk 0:00:41]}  Bh3 {[%clk 0:00:21]} 23. Rb1 {[%clk 0:00:23]}  h5 {[%clk 0:00:18]} 24. d5 {[%clk 0:00:19]}  Ne5 {[%clk 0:00:18]} 25. Ne3 {[%clk 0:00:15]}  Re8 {[%clk 0:00:17]} 26. Bg2 {[%clk 0:00:14]}  Rad8 {[%clk 0:00:13]} 27. f4 {[%clk 0:00:13]}  Bxg2 {[%clk 0:00:13]} 28. Kxg2 {[%clk 0:00:13]}  Ng4 {[%clk 0:00:10]} 29. Nxg4 {[%clk 0:00:13]}  hxg4 {[%clk 0:00:05]} 30. Bxg7 {[%clk 0:00:11]}  Kxg7 {[%clk 0:00:06]} 31. Qd4+ {[%clk 0:00:11]}  f6 {[%clk 0:00:07]} 32. Rbd1 {[%clk 0:00:06]}  Qf5 {[%clk 0:00:07]} 33. d6 {[%clk 0:00:04]}  Rxe1 {[%clk 0:00:04]} 34. Rxe1 {[%clk 0:00:03]}  Qc2+ {[%clk 0:00:04]} 35. Kg1 {[%clk 0:00:01]}  Qxa2 {[%clk 0:00:03]} 36. Re7+ {[%clk 0:00:01]}  Kh6 {[%clk 0:00:03]} 0-1


[Site "https://www.chess.com"]

[Event "Titled Tuesday Blitz March 22 Late 2022"]
[White "Fiol, Fabrice"]
[Black "Djokic, Mihailo"]
[WhiteFideId "611670"]
[BlackFideId "976440"]
[WhiteElo "2439"]
[BlackElo "2093"]
[Result "1/2-1/2"]
[Round "03"]
[TimeControl "180+1"]
[Date "2022.03.22"]
[WhiteClock "0:00:09"]
[BlackClock "0:00:07"]

1. e4 {[%clk 0:03:00]}  c5 {[%clk 0:03:00]} 2. Nf3 {[%clk 0:03:00]}  d6 {[%clk 0:03:00]} 3. Bb5+ {[%clk 0:02:59]}  Bd7 {[%clk 0:03:00]} 4. Bxd7+ {[%clk 0:02:59]}  Qxd7 {[%clk 0:03:01]} 5. O-O {[%clk 0:02:59]}  Nc6 {[%clk 0:03:02]} 6. Qe2 {[%clk 0:02:59]}  Nf6 {[%clk 0:03:02]} 7. c3 {[%clk 0:03:00]}  e6 {[%clk 0:03:03]} 8. d4 {[%clk 0:03:00]}  cxd4 {[%clk 0:03:03]} 9. cxd4 {[%clk 0:03:01]}  d5 {[%clk 0:03:04]} 10. e5 {[%clk 0:03:01]}  Ne4 {[%clk 0:03:05]} 11. Nbd2 {[%clk 0:03:02]}  Nxd2 {[%clk 0:03:05]} 12. Bxd2 {[%clk 0:03:03]}  Bb4 {[%clk 0:03:05]} 13. a3 {[%clk 0:03:02]}  Bxd2 {[%clk 0:03:05]} 14. Qxd2 {[%clk 0:03:03]}  O-O {[%clk 0:03:04]} 15. Rac1 {[%clk 0:03:04]}  h6 {[%clk 0:03:04]} 16. h4 {[%clk 0:03:03]}  Rfc8 {[%clk 0:03:05]} 17. h5 {[%clk 0:03:03]}  Ne7 {[%clk 0:03:01]} 18. g4 {[%clk 0:03:02]}  Rc6 {[%clk 0:03:02]} 19. Rxc6 {[%clk 0:03:02]}  Qxc6 {[%clk 0:02:59]} 20. Rc1 {[%clk 0:03:01]}  Qd7 {[%clk 0:02:59]} 21. g5 {[%clk 0:03:01]}  hxg5 {[%clk 0:02:56]} 22. Qxg5 {[%clk 0:03:01]}  Nf5 {[%clk 0:02:52]} 23. Kh1 {[%clk 0:02:52]}  Rc8 {[%clk 0:02:41]} 24. Rg1 {[%clk 0:02:51]}  Rc2 {[%clk 0:02:41]} 25. h6 {[%clk 0:02:48]}  g6 {[%clk 0:02:11]} 26. Rg2 {[%clk 0:02:36]}  Rxb2 {[%clk 0:01:53]} 27. h7+ {[%clk 0:02:29]}  Kxh7 {[%clk 0:01:45]} 28. Rh2+ {[%clk 0:02:15]}  Kg8 {[%clk 0:01:44]} 29. Qf6 {[%clk 0:02:13]}  Ng7 {[%clk 0:01:42]} 30. Ng5 {[%clk 0:01:52]}  Qc7 {[%clk 0:01:32]} 31. Nxf7 {[%clk 0:01:17]}  Qxf7 {[%clk 0:01:00]} 32. Rh8+ {[%clk 0:01:16]}  Kxh8 {[%clk 0:01:00]} 33. Qxf7 {[%clk 0:01:17]}  Kh7 {[%clk 0:00:57]} 34. Kg2 {[%clk 0:01:15]}  a5 {[%clk 0:00:47]} 35. Qc7 {[%clk 0:01:14]}  a4 {[%clk 0:00:45]} 36. Qa5 {[%clk 0:01:11]}  b5 {[%clk 0:00:44]} 37. Qc7 {[%clk 0:01:01]}  Rb3 {[%clk 0:00:42]} 38. Qc5 {[%clk 0:00:57]}  Kh6 {[%clk 0:00:35]} 39. Qc1+ {[%clk 0:00:55]}  g5 {[%clk 0:00:35]} 40. Qc5 {[%clk 0:00:53]}  Kg6 {[%clk 0:00:34]} 41. Qc2+ {[%clk 0:00:50]}  Nf5 {[%clk 0:00:33]} 42. Qc6 {[%clk 0:00:48]}  Nxd4 {[%clk 0:00:32]} 43. Qe8+ {[%clk 0:00:46]}  Kf5 {[%clk 0:00:32]} 44. Qh8 {[%clk 0:00:44]}  Ke4 {[%clk 0:00:20]} 45. Qg7 {[%clk 0:00:35]}  Nf3 {[%clk 0:00:16]} 46. Qe7 {[%clk 0:00:30]}  Kxe5 {[%clk 0:00:11]} 47. Qc7+ {[%clk 0:00:30]}  Kd4 {[%clk 0:00:10]} 48. Qg7+ {[%clk 0:00:29]}  e5 {[%clk 0:00:08]} 49. Qa7+ {[%clk 0:00:28]}  Ke4 {[%clk 0:00:09]} 50. Qh7+ {[%clk 0:00:28]}  Kd4 {[%clk 0:00:09]} 51. Qa7+ {[%clk 0:00:28]}  Kc3 {[%clk 0:00:07]} 52. Kxf3 {[%clk 0:00:27]}  Rxa3 {[%clk 0:00:05]} 53. Qc5+ {[%clk 0:00:27]}  Kb2+ {[%clk 0:00:04]} 54. Kg2 {[%clk 0:00:26]}  Rb3 {[%clk 0:00:04]} 55. Qxd5 {[%clk 0:00:25]}  a3 {[%clk 0:00:05]} 56. Qxe5+ {[%clk 0:00:26]}  Ka2 {[%clk 0:00:04]} 57. Qe2+ {[%clk 0:00:25]}  Rb2 {[%clk 0:00:05]} 58. Qe6+ {[%clk 0:00:25]}  Ka1 {[%clk 0:00:04]} 59. Qe1+ {[%clk 0:00:24]}  Ka2 {[%clk 0:00:05]} 60. Qe6+ {[%clk 0:00:23]}  Kb1 {[%clk 0:00:05]} 61. Qe1+ {[%clk 0:00:23]}  Kc2 {[%clk 0:00:06]} 62. Qe2+ {[%clk 0:00:22]}  Kb3 {[%clk 0:00:06]} 63. Qxb5+ {[%clk 0:00:22]}  Kc3 {[%clk 0:00:06]} 64. Qa5+ {[%clk 0:00:20]}  Kb3 {[%clk 0:00:06]} 65. Qd5+ {[%clk 0:00:20]}  Kb4 {[%clk 0:00:06]} 66. Qxg5 {[%clk 0:00:18]}  a2 {[%clk 0:00:06]} 67. Qf4+ {[%clk 0:00:15]}  Ka3 {[%clk 0:00:05]} 68. Qe3+ {[%clk 0:00:13]}  Rb3 {[%clk 0:00:06]} 69. Qa7+ {[%clk 0:00:13]}  Kb2 {[%clk 0:00:06]} 70. Qd4+ {[%clk 0:00:13]}  Rc3 {[%clk 0:00:05]} 71. Qb4+ {[%clk 0:00:12]}  Kc2 {[%clk 0:00:04]} 72. Qa4+ {[%clk 0:00:11]}  Kb1 {[%clk 0:00:05]} 73. Qb4+ {[%clk 0:00:11]}  Kc2 {[%clk 0:00:05]} 74. Qa4+ {[%clk 0:00:11]}  Kb2 {[%clk 0:00:06]} 75. Qb4+ {[%clk 0:00:09]}  Rb3 {[%clk 0:00:06]} 76. Qd2+ {[%clk 0:00:09]}  Ka3 {[%clk 0:00:06]} 77. Qa5+ {[%clk 0:00:08]}  Kb2 {[%clk 0:00:06]} 78. Qd2+ {[%clk 0:00:09]}  Kb1 {[%clk 0:00:07]} 79. Qd1+ {[%clk 0:00:09]}  Kb2 {[%clk 0:00:07]} 80. Qd2+ {[%clk 0:00:09]} 1/2-1/2


[Site "https://www.chess.com"]